[Event "Titled Tuesday Blitz July 11 Early 2023"]
[White "Shuvalova, Polina"]
[Black "Bilan, Danila"]
[WhiteFideId "24171760"]
[BlackFideId "24161918"]
[WhiteElo "2676"]
[BlackElo "2541"]
[Result "1-0"]
[Round "11"]
[TimeControl "180+2"]
[Date "2023.07.11"]
[WhiteClock "0:01:15"]
[BlackClock "0:00:00"]
[Board "42"]

1. e4 {[%clk 0:03:00]}  c6 {[%clk 0:02:58]} 2. d4 {[%clk 0:03:00]}  d5 {[%clk 0:02:59]} 3. exd5 {[%clk 0:03:01]}  cxd5 {[%clk 0:02:59]} 4. Bd3 {[%clk 0:03:02]}  Nc6 {[%clk 0:02:59]} 5. c3 {[%clk 0:03:02]}  Qc7 {[%clk 0:02:59]} 6. Ne2 {[%clk 0:03:02]}  Bg4 {[%clk 0:02:59]} 7. O-O {[%clk 0:03:02]}  e6 {[%clk 0:02:56]} 8. Qe1 {[%clk 0:03:02]}  Bh5 {[%clk 0:02:50]} 9. f4 {[%clk 0:02:49]}  Nge7 {[%clk 0:02:31]} 10. Ng3 {[%clk 0:02:42]}  Bg6 {[%clk 0:02:20]} 11. f5 {[%clk 0:02:42]}  exf5 {[%clk 0:02:00]} 12. Nxf5 {[%clk 0:02:41]}  Bxf5 {[%clk 0:01:52]} 13. Bxf5 {[%clk 0:02:23]}  g6 {[%clk 0:01:35]} 14. Bd3 {[%clk 0:02:07]}  Bg7 {[%clk 0:01:31]} 15. Bg5 {[%clk 0:02:07]}  O-O {[%clk 0:01:28]} 16. Nd2 {[%clk 0:02:07]}  Rae8 {[%clk 0:01:17]} 17. Qf2 {[%clk 0:02:07]}  f5 {[%clk 0:01:09]} 18. Rae1 {[%clk 0:02:04]}  Nc8 {[%clk 0:01:08]} 19. Qf3 {[%clk 0:01:57]}  Qf7 {[%clk 0:00:52]} 20. Bf4 {[%clk 0:01:54]}  Rd8 {[%clk 0:00:39]} 21. Re2 {[%clk 0:01:44]}  Nd6 {[%clk 0:00:37]} 22. Bxd6 {[%clk 0:01:43]}  Rxd6 {[%clk 0:00:38]} 23. Rfe1 {[%clk 0:01:43]}  Bxd4+ {[%clk 0:00:21]} 24. cxd4 {[%clk 0:01:40]}  Nxd4 {[%clk 0:00:22]} 25. Qe3 {[%clk 0:01:40]}  Nxe2+ {[%clk 0:00:21]} 26. Rxe2 {[%clk 0:01:40]}  Kg7 {[%clk 0:00:15]} 27. Nf3 {[%clk 0:01:39]}  d4 {[%clk 0:00:11]} 28. Qf4 {[%clk 0:01:28]}  Rfd8 {[%clk 0:00:07]} 29. h4 {[%clk 0:01:28]}  Qxa2 {[%clk 0:00:02]} 30. Re7+ {[%clk 0:01:26]}  Kf8 {[%clk 0:00:02]} 31. Rxh7 {[%clk 0:01:24]}  Qg8 {[%clk 0:00:01]} 32. Qh6+ {[%clk 0:01:14]}  Ke8 {[%clk 0:00:00]} 33. Bb5+ {[%clk 0:01:15]} 1-0


[Site "https://www.chess.com"]

[Event "Titled Tuesday Blitz July 11 Early 2023"]
[White "only_strong_moves"]
[Black "Skliarov, Viktor"]
[BlackFideId "14106736"]
[WhiteElo "2539"]
[BlackElo "2643"]
[Result "1-0"]
[Round "11"]
[TimeControl "180+2"]
[Date "2023.07.11"]
[WhiteClock "0:00:05"]
[BlackClock "0:00:04"]
[Board "43"]

1. d4 {[%clk 0:03:00]}  Nf6 {[%clk 0:03:00]} 2. c4 {[%clk 0:03:00]}  e6 {[%clk 0:03:00]} 3. Nf3 {[%clk 0:03:01]}  c5 {[%clk 0:02:59]} 4. d5 {[%clk 0:03:00]}  exd5 {[%clk 0:02:59]} 5. cxd5 {[%clk 0:03:01]}  d6 {[%clk 0:02:59]} 6. Nc3 {[%clk 0:03:01]}  g6 {[%clk 0:02:59]} 7. Nd2 {[%clk 0:03:01]}  Bg7 {[%clk 0:02:57]} 8. e4 {[%clk 0:03:02]}  O-O {[%clk 0:02:56]} 9. Be2 {[%clk 0:03:00]}  a6 {[%clk 0:02:56]} 10. a4 {[%clk 0:03:00]}  Nbd7 {[%clk 0:02:55]} 11. O-O {[%clk 0:03:00]}  Re8 {[%clk 0:02:55]} 12. h3 {[%clk 0:02:59]}  Rb8 {[%clk 0:02:55]} 13. a5 {[%clk 0:02:58]}  h6 {[%clk 0:02:31]} 14. Qc2 {[%clk 0:02:51]}  g5 {[%clk 0:02:19]} 15. f4 {[%clk 0:02:37]}  gxf4 {[%clk 0:02:14]} 16. Nc4 {[%clk 0:02:38]}  Ne5 {[%clk 0:02:12]} 17. Bxf4 {[%clk 0:02:37]}  Nxc4 {[%clk 0:02:07]} 18. Bxc4 {[%clk 0:02:38]}  b5 {[%clk 0:02:06]} 19. axb6 {[%clk 0:02:38]}  Rxb6 {[%clk 0:02:06]} 20. Rae1 {[%clk 0:02:34]}  Nh5 {[%clk 0:01:52]} 21. Bc1 {[%clk 0:02:24]}  Bd4+ {[%clk 0:01:34]} 22. Be3 {[%clk 0:01:49]}  Qh4 {[%clk 0:01:34]} 23. Bxd4 {[%clk 0:01:33]}  cxd4 {[%clk 0:01:34]} 24. Na4 {[%clk 0:01:34]}  Rb4 {[%clk 0:01:27]} 25. b3 {[%clk 0:01:28]}  Ng3 {[%clk 0:01:17]} 26. Qf2 {[%clk 0:01:25]}  f6 {[%clk 0:01:00]} 27. e5 {[%clk 0:01:05]}  Rxe5 {[%clk 0:00:50]} 28. Rxe5 {[%clk 0:01:05]}  dxe5 {[%clk 0:00:50]} 29. Qxf6 {[%clk 0:00:55]}  Qxf6 {[%clk 0:00:49]} 30. Rxf6 {[%clk 0:00:55]}  Ne4 {[%clk 0:00:26]} 31. Rc6 {[%clk 0:00:18]}  Bd7 {[%clk 0:00:26]} 32. Rc7 {[%clk 0:00:12]}  Bxa4 {[%clk 0:00:22]} 33. bxa4 {[%clk 0:00:13]}  Nd6 {[%clk 0:00:16]} 34. Bxa6 {[%clk 0:00:11]}  Rxa4 {[%clk 0:00:16]} 35. Rc6 {[%clk 0:00:11]}  Nf5 {[%clk 0:00:07]} 36. d6 {[%clk 0:00:10]}  Kf8 {[%clk 0:00:06]} 37. Rc8+ {[%clk 0:00:09]}  Kf7 {[%clk 0:00:05]} 38. d7 {[%clk 0:00:09]}  Ra1+ {[%clk 0:00:05]} 39. Kh2 {[%clk 0:00:09]}  Rxa6 {[%clk 0:00:05]} 40. d8=Q {[%clk 0:00:09]}  Rd6 {[%clk 0:00:05]} 41. Qc7+ {[%clk 0:00:09]}  Ke6 {[%clk 0:00:04]} 42. Qc4+ {[%clk 0:00:08]}  Kf6 {[%clk 0:00:04]} 43. Rf8+ {[%clk 0:00:08]}  Kg5 {[%clk 0:00:05]} 44. Qg8+ {[%clk 0:00:06]}  Kf4 {[%clk 0:00:04]} 45. Qg3+ {[%clk 0:00:05]}  Ke4 {[%clk 0:00:04]} 46. Qf3# {[%clk 0:00:05]} 1-0


[Site "https://www.chess.com"]

[Event "Titled Tuesday Blitz July 11 Early 2023"]
[White "Akylbek2021"]
[Black "Koshulyan, Egor A."]
[BlackFideId "24237000"]
[WhiteElo "2533"]
[BlackElo "2641"]
[Result "1-0"]
[Round "11"]
[TimeControl "180+2"]
[Date "2023.07.11"]
[WhiteClock "0:00:37"]
[BlackClock "0:00:11"]
[Board "44"]

1. e4 {[%clk 0:03:00]}  c5 {[%clk 0:02:58]} 2. Nf3 {[%clk 0:03:01]}  Nc6 {[%clk 0:02:58]} 3. Bb5 {[%clk 0:03:00]}  g5 {[%clk 0:02:58]} 4. d3 {[%clk 0:02:59]}  g4 {[%clk 0:02:58]} 5. Nfd2 {[%clk 0:02:58]}  h5 {[%clk 0:02:55]} 6. Nc3 {[%clk 0:02:57]}  Bg7 {[%clk 0:02:55]} 7. Bc4 {[%clk 0:02:56]}  Nd4 {[%clk 0:02:53]} 8. Nb3 {[%clk 0:02:56]}  e6 {[%clk 0:02:36]} 9. Be3 {[%clk 0:02:56]}  d6 {[%clk 0:02:33]} 10. h3 {[%clk 0:02:55]}  a6 {[%clk 0:02:17]} 11. a4 {[%clk 0:02:48]}  g3 {[%clk 0:01:54]} 12. fxg3 {[%clk 0:02:46]}  b6 {[%clk 0:01:43]} 13. O-O {[%clk 0:02:44]}  Ne7 {[%clk 0:01:36]} 14. Bxd4 {[%clk 0:02:32]}  cxd4 {[%clk 0:01:37]} 15. Qf3 {[%clk 0:02:32]}  Rf8 {[%clk 0:01:12]} 16. Ne2 {[%clk 0:02:27]}  Qc7 {[%clk 0:00:36]} 17. Nbxd4 {[%clk 0:02:23]}  Qc5 {[%clk 0:00:26]} 18. Qf2 {[%clk 0:02:21]}  Bb7 {[%clk 0:00:25]} 19. Bb3 {[%clk 0:02:13]}  Ng6 {[%clk 0:00:23]} 20. c3 {[%clk 0:02:06]}  Ne5 {[%clk 0:00:21]} 21. Rad1 {[%clk 0:02:04]}  b5 {[%clk 0:00:19]} 22. Nf3 {[%clk 0:02:01]}  Nxf3+ {[%clk 0:00:17]} 23. gxf3 {[%clk 0:02:02]}  Qg5 {[%clk 0:00:16]} 24. h4 {[%clk 0:01:58]}  Qe7 {[%clk 0:00:16]} 25. Nf4 {[%clk 0:01:56]}  Be5 {[%clk 0:00:16]} 26. Ne2 {[%clk 0:01:36]}  Rg8 {[%clk 0:00:15]} 27. f4 {[%clk 0:01:34]}  Bf6 {[%clk 0:00:16]} 28. Kh2 {[%clk 0:01:33]}  Rg4 {[%clk 0:00:16]} 29. Ng1 {[%clk 0:01:27]}  Kd7 {[%clk 0:00:14]} 30. Nf3 {[%clk 0:01:10]}  Rag8 {[%clk 0:00:13]} 31. Ng5 {[%clk 0:01:11]}  Ke8 {[%clk 0:00:09]} 32. axb5 {[%clk 0:01:09]}  axb5 {[%clk 0:00:10]} 33. Ra1 {[%clk 0:01:08]}  Qd7 {[%clk 0:00:10]} 34. Ra7 {[%clk 0:01:00]}  Bd8 {[%clk 0:00:10]} 35. Rfa1 {[%clk 0:00:53]}  Qc6 {[%clk 0:00:10]} 36. c4 {[%clk 0:00:46]}  Bb6 {[%clk 0:00:10]} 37. Qf3 {[%clk 0:00:40]}  Bxa7 {[%clk 0:00:11]} 38. Rxa7 {[%clk 0:00:40]}  bxc4 {[%clk 0:00:11]} 39. Ba4 {[%clk 0:00:40]}  cxd3 {[%clk 0:00:11]} 40. Bxc6+ {[%clk 0:00:37]}  Bxc6 {[%clk 0:00:11]} 41. Qxd3 {[%clk 0:00:37]} 1-0


[Site "https://www.chess.com"]

[Event "Titled Tuesday Blitz July 11 Early 2023"]
[White "Weishaeutel, Moritz"]
[Black "gueraumasague"]
[WhiteFideId "12967300"]
[WhiteElo "2604"]
[BlackElo "2505"]
[Result "1-0"]
[Round "11"]
[TimeControl "180+2"]
[Date "2023.07.11"]
[WhiteClock "0:00:04"]
[BlackClock "0:00:00"]
[Board "48"]

1. e4 {[%clk 0:03:00]}  g6 {[%clk 0:02:57]} 2. h4 {[%clk 0:02:58]}  Bg7 {[%clk 0:02:57]} 3. h5 {[%clk 0:02:59]}  d5 {[%clk 0:02:56]} 4. exd5 {[%clk 0:02:57]}  Qxd5 {[%clk 0:02:56]} 5. Nc3 {[%clk 0:02:57]}  Qa5 {[%clk 0:02:55]} 6. Nf3 {[%clk 0:02:52]}  Bg4 {[%clk 0:02:45]} 7. d4 {[%clk 0:02:41]}  Bxh5 {[%clk 0:02:40]} 8. Bd2 {[%clk 0:02:41]}  Nf6 {[%clk 0:02:24]} 9. Bc4 {[%clk 0:02:21]}  c6 {[%clk 0:02:10]} 10. Qe2 {[%clk 0:02:03]}  Qf5 {[%clk 0:01:57]} 11. O-O-O {[%clk 0:01:57]}  Bxf3 {[%clk 0:01:56]} 12. gxf3 {[%clk 0:01:57]}  Nbd7 {[%clk 0:01:42]} 13. Ne4 {[%clk 0:01:49]}  O-O {[%clk 0:01:41]} 14. Ng5 {[%clk 0:01:42]}  e6 {[%clk 0:01:14]} 15. Nxe6 {[%clk 0:01:37]}  Rfe8 {[%clk 0:01:00]} 16. Nxg7 {[%clk 0:01:37]}  Kxg7 {[%clk 0:01:00]} 17. Qf1 {[%clk 0:01:15]}  h5 {[%clk 0:00:59]} 18. Qg2 {[%clk 0:01:11]}  Nd5 {[%clk 0:00:54]} 19. Bd3 {[%clk 0:01:08]}  Qf6 {[%clk 0:00:38]} 20. Rxh5 {[%clk 0:00:41]}  Nf4 {[%clk 0:00:37]} 21. Bxf4 {[%clk 0:00:41]}  Qxf4+ {[%clk 0:00:38]} 22. Kb1 {[%clk 0:00:42]}  Rh8 {[%clk 0:00:27]} 23. Rf5 {[%clk 0:00:34]}  Qd6 {[%clk 0:00:18]} 24. Rg1 {[%clk 0:00:34]}  Rh6 {[%clk 0:00:16]} 25. Bc4 {[%clk 0:00:30]}  Rf8 {[%clk 0:00:15]} 26. Bb3 {[%clk 0:00:17]}  Qh2 {[%clk 0:00:13]} 27. Qg5 {[%clk 0:00:13]}  Qh4 {[%clk 0:00:13]} 28. Qxh4 {[%clk 0:00:10]}  Rxh4 {[%clk 0:00:14]} 29. d5 {[%clk 0:00:10]}  cxd5 {[%clk 0:00:06]} 30. Rxd5 {[%clk 0:00:10]}  Nf6 {[%clk 0:00:06]} 31. Rd2 {[%clk 0:00:08]}  Rf4 {[%clk 0:00:06]} 32. Rd3 {[%clk 0:00:07]}  Re8 {[%clk 0:00:07]} 33. a4 {[%clk 0:00:06]}  Re7 {[%clk 0:00:07]} 34. Rgd1 {[%clk 0:00:06]}  a6 {[%clk 0:00:08]} 35. Rc3 {[%clk 0:00:05]}  Ne8 {[%clk 0:00:07]} 36. Rd8 {[%clk 0:00:05]}  Nf6 {[%clk 0:00:06]} 37. Rcc8 {[%clk 0:00:05]}  Rxf3 {[%clk 0:00:07]} 38. Rb8 {[%clk 0:00:03]}  Rxf2 {[%clk 0:00:07]} 39. Rd4 {[%clk 0:00:04]}  Rf3 {[%clk 0:00:06]} 40. Rb4 {[%clk 0:00:04]}  Re1+ {[%clk 0:00:03]} 41. Ka2 {[%clk 0:00:04]}  Rff1 {[%clk 0:00:04]} 42. Bc4 {[%clk 0:00:04]}  Nd7 {[%clk 0:00:05]} 43. R8xb7 {[%clk 0:00:03]}  Nc5 {[%clk 0:00:05]} 44. Bxf1 {[%clk 0:00:04]}  Nxb7 {[%clk 0:00:04]} 45. Bxa6 {[%clk 0:00:04]}  Nc5 {[%clk 0:00:04]} 46. Bc4 {[%clk 0:00:05]}  g5 {[%clk 0:00:04]} 47. a5 {[%clk 0:00:05]}  g4 {[%clk 0:00:04]} 48. Rb5 {[%clk 0:00:06]}  Ne6 {[%clk 0:00:01]} 49. a6 {[%clk 0:00:04]}  g3 {[%clk 0:00:01]} 50. a7 {[%clk 0:00:04]}  Kf6 {[%clk 0:00:01]} 51. a8=Q {[%clk 0:00:04]}  g2 {[%clk 0:00:02]} 52. Qxg2 {[%clk 0:00:04]}  Re5 {[%clk 0:00:00]} 53. Qf2+ {[%clk 0:00:04]} 1-0


[Site "https://www.chess.com"]

[Event "Titled Tuesday Blitz July 11 Early 2023"]
[White "Zavgorodniy, Sergiy"]
[Black "Jovic, Stanoje"]
[WhiteFideId "14110148"]
[BlackFideId "905020"]
[WhiteElo "2601"]
[BlackElo "2504"]
[Result "0-1"]
[Round "11"]
[TimeControl "180+2"]
[Date "2023.07.11"]
[WhiteClock "0:00:10"]
[BlackClock "0:00:38"]
[Board "49"]

1. e4 {[%clk 0:02:55]}  c6 {[%clk 0:02:59]} 2. d4 {[%clk 0:02:53]}  d5 {[%clk 0:02:59]} 3. exd5 {[%clk 0:02:54]}  cxd5 {[%clk 0:02:58]} 4. c4 {[%clk 0:02:54]}  Nf6 {[%clk 0:02:58]} 5. Nc3 {[%clk 0:02:55]}  Nc6 {[%clk 0:02:58]} 6. Nf3 {[%clk 0:02:55]}  Bg4 {[%clk 0:02:57]} 7. cxd5 {[%clk 0:02:55]}  Nxd5 {[%clk 0:02:58]} 8. Qb3 {[%clk 0:02:55]}  Bxf3 {[%clk 0:02:58]} 9. gxf3 {[%clk 0:02:56]}  Nb6 {[%clk 0:02:58]} 10. Be3 {[%clk 0:02:55]}  e6 {[%clk 0:02:57]} 11. Rg1 {[%clk 0:02:55]}  Be7 {[%clk 0:02:57]} 12. Rxg7 {[%clk 0:02:54]}  Bf6 {[%clk 0:02:58]} 13. Rg4 {[%clk 0:02:54]}  h5 {[%clk 0:02:57]} 14. Re4 {[%clk 0:02:54]}  Bxd4 {[%clk 0:02:39]} 15. O-O-O {[%clk 0:02:49]}  Bxe3+ {[%clk 0:02:37]} 16. fxe3 {[%clk 0:02:49]}  Qe7 {[%clk 0:02:24]} 17. Bb5 {[%clk 0:02:31]}  Rd8 {[%clk 0:02:16]} 18. Rxd8+ {[%clk 0:02:23]}  Qxd8 {[%clk 0:02:12]} 19. a4 {[%clk 0:02:21]}  Rg8 {[%clk 0:02:10]} 20. a5 {[%clk 0:02:21]}  Rg1+ {[%clk 0:02:06]} 21. Kc2 {[%clk 0:02:21]}  Nd7 {[%clk 0:01:52]} 22. Bxc6 {[%clk 0:01:59]}  bxc6 {[%clk 0:01:50]} 23. Qa4 {[%clk 0:02:00]}  Qc7 {[%clk 0:01:44]} 24. Rh4 {[%clk 0:01:41]}  Rg5 {[%clk 0:01:35]} 25. Qd4 {[%clk 0:01:18]}  Qxa5 {[%clk 0:01:24]} 26. f4 {[%clk 0:00:52]}  Rg2+ {[%clk 0:01:20]} 27. Kb1 {[%clk 0:00:52]}  Qf5+ {[%clk 0:01:12]} 28. Qe4 {[%clk 0:00:38]}  Nf6 {[%clk 0:01:07]} 29. Qxf5 {[%clk 0:00:31]}  exf5 {[%clk 0:01:08]} 30. Rh3 {[%clk 0:00:23]}  Kd7 {[%clk 0:01:03]} 31. Ka2 {[%clk 0:00:23]}  Kd6 {[%clk 0:01:02]} 32. Kb3 {[%clk 0:00:23]}  Kc5 {[%clk 0:01:02]} 33. Rg3 {[%clk 0:00:18]}  Rxg3 {[%clk 0:00:57]} 34. hxg3 {[%clk 0:00:19]}  Ne4 {[%clk 0:00:52]} 35. Ne2 {[%clk 0:00:19]}  Kd5 {[%clk 0:00:47]} 36. Kc2 {[%clk 0:00:18]}  Kc4 {[%clk 0:00:43]} 37. b3+ {[%clk 0:00:14]}  Kb4 {[%clk 0:00:43]} 38. Kb2 {[%clk 0:00:14]}  c5 {[%clk 0:00:41]} 39. Ka2 {[%clk 0:00:14]}  Nc3+ {[%clk 0:00:38]} 40. Kb2 {[%clk 0:00:10]}  Nxe2 {[%clk 0:00:38]} 0-1


[Site "https://www.chess.com"]

[Event "Titled Tuesday Blitz July 11 Early 2023"]
[White "Rodriguez Santiago, Jaime"]
[Black "Gontcharov, Vladislav"]
[WhiteFideId "3100898"]
[BlackFideId "4123492"]
[WhiteElo "2397"]
[BlackElo "2586"]
[Result "0-1"]
[Round "11"]
[TimeControl "180+2"]
[Date "2023.07.11"]
[WhiteClock "0:00:21"]
[BlackClock "0:00:40"]
[Board "53"]

1. d4 {[%clk 0:03:00]}  Nf6 {[%clk 0:02:58]} 2. c4 {[%clk 0:03:01]}  e6 {[%clk 0:02:57]} 3. Nc3 {[%clk 0:03:00]}  Bb4 {[%clk 0:02:57]} 4. e3 {[%clk 0:02:59]}  O-O {[%clk 0:02:55]} 5. Bd3 {[%clk 0:02:59]}  c5 {[%clk 0:02:53]} 6. Ne2 {[%clk 0:02:58]}  b6 {[%clk 0:02:45]} 7. O-O {[%clk 0:02:55]}  Bb7 {[%clk 0:02:42]} 8. a3 {[%clk 0:02:43]}  Bxc3 {[%clk 0:02:35]} 9. Nxc3 {[%clk 0:02:42]}  d5 {[%clk 0:02:23]} 10. cxd5 {[%clk 0:02:28]}  exd5 {[%clk 0:02:18]} 11. dxc5 {[%clk 0:02:28]}  bxc5 {[%clk 0:02:18]} 12. b3 {[%clk 0:02:24]}  Nbd7 {[%clk 0:02:15]} 13. Bb2 {[%clk 0:02:22]}  Qe7 {[%clk 0:02:14]} 14. Rc1 {[%clk 0:02:20]}  Ne5 {[%clk 0:02:11]} 15. Bb1 {[%clk 0:02:19]}  Rfd8 {[%clk 0:02:10]} 16. Qe2 {[%clk 0:02:14]}  a5 {[%clk 0:02:07]} 17. Rfd1 {[%clk 0:02:12]}  Ba6 {[%clk 0:01:53]} 18. Qe1 {[%clk 0:02:10]}  Rab8 {[%clk 0:01:47]} 19. Bc2 {[%clk 0:01:55]}  c4 {[%clk 0:01:38]} 20. Na4 {[%clk 0:01:42]}  cxb3 {[%clk 0:01:31]} 21. Bb1 {[%clk 0:01:34]}  Nc4 {[%clk 0:01:30]} 22. Bc3 {[%clk 0:00:48]}  Bb5 {[%clk 0:01:21]} 23. Nb2 {[%clk 0:00:46]}  Qxa3 {[%clk 0:01:12]} 24. Nxc4 {[%clk 0:00:40]}  Bxc4 {[%clk 0:01:00]} 25. Bxa5 {[%clk 0:00:39]}  Re8 {[%clk 0:00:53]} 26. Rd2 {[%clk 0:00:29]}  Qxa5 {[%clk 0:00:49]} 27. f3 {[%clk 0:00:21]}  Qb6 {[%clk 0:00:40]} 0-1


[Site "https://www.chess.com"]

[Event "Titled Tuesday Blitz July 11 Early 2023"]
[White "Sidletskyi, Ivan"]
[Black "Preotu, Razvan"]
[WhiteFideId "14156024"]
[BlackFideId "2613280"]
[WhiteElo "2538"]
[BlackElo "2734"]
[Result "0-1"]
[Round "11"]
[TimeControl "180+2"]
[Date "2023.07.11"]
[WhiteClock "0:01:03"]
[BlackClock "0:02:02"]
[Board "57"]

1. c4 {[%clk 0:03:00]}  c5 {[%clk 0:02:54]} 2. Nc3 {[%clk 0:03:01]}  Nc6 {[%clk 0:02:54]} 3. g3 {[%clk 0:03:01]}  g6 {[%clk 0:02:53]} 4. Bg2 {[%clk 0:03:01]}  Bg7 {[%clk 0:02:54]} 5. a3 {[%clk 0:03:02]}  b6 {[%clk 0:02:48]} 6. b4 {[%clk 0:03:00]}  Bb7 {[%clk 0:02:47]} 7. bxc5 {[%clk 0:02:57]}  bxc5 {[%clk 0:02:48]} 8. Rb1 {[%clk 0:02:57]}  Rb8 {[%clk 0:02:48]} 9. Nf3 {[%clk 0:02:53]}  Nf6 {[%clk 0:02:46]} 10. O-O {[%clk 0:02:52]}  O-O {[%clk 0:02:46]} 11. d4 {[%clk 0:02:46]}  Nxd4 {[%clk 0:02:44]} 12. Nxd4 {[%clk 0:02:38]}  Bxg2 {[%clk 0:02:43]} 13. Kxg2 {[%clk 0:02:20]}  Rxb1 {[%clk 0:02:34]} 14. Nxb1 {[%clk 0:02:21]}  cxd4 {[%clk 0:02:34]} 15. Qxd4 {[%clk 0:02:21]}  Qc7 {[%clk 0:02:12]} 16. c5 {[%clk 0:02:07]}  Qb7+ {[%clk 0:02:10]} 17. e4 {[%clk 0:01:18]}  Qxb1 {[%clk 0:02:08]} 18. f3 {[%clk 0:01:03]}  Qc2+ {[%clk 0:02:02]} 19. Kg1 {[%clk 0:01:03]} 0-1


[Site "https://www.chess.com"]

[Event "Titled Tuesday Blitz July 11 Early 2023"]
[White "Shvedova, Alexandra"]
[Black "Goryachkina, Aleksandra"]
[WhiteFideId "54154782"]
[BlackFideId "4147103"]
[WhiteElo "2537"]
[BlackElo "2700"]
[Result "1-0"]
[Round "11"]
[TimeControl "180+2"]
[Date "2023.07.11"]
[WhiteClock "0:00:50"]
[BlackClock "0:00:00"]
[Board "58"]

1. e4 {[%clk 0:03:00]}  c5 {[%clk 0:03:00]} 2. Ne2 {[%clk 0:03:00]}  Nc6 {[%clk 0:02:58]} 3. d4 {[%clk 0:03:00]}  cxd4 {[%clk 0:02:58]} 4. Nxd4 {[%clk 0:03:01]}  e6 {[%clk 0:02:59]} 5. Nc3 {[%clk 0:02:59]}  Qc7 {[%clk 0:02:59]} 6. Be3 {[%clk 0:02:58]}  a6 {[%clk 0:02:55]} 7. g4 {[%clk 0:02:56]}  Nge7 {[%clk 0:02:45]} 8. Qf3 {[%clk 0:02:51]}  Ng6 {[%clk 0:02:42]} 9. O-O-O {[%clk 0:02:48]}  Bb4 {[%clk 0:02:39]} 10. Qg3 {[%clk 0:02:30]}  Nce5 {[%clk 0:02:27]} 11. f4 {[%clk 0:02:06]}  Bxc3 {[%clk 0:02:16]} 12. bxc3 {[%clk 0:01:58]}  Nc4 {[%clk 0:01:38]} 13. Bxc4 {[%clk 0:01:57]}  Qxc4 {[%clk 0:01:39]} 14. Nb3 {[%clk 0:01:58]}  Qxc3 {[%clk 0:01:09]} 15. Rd3 {[%clk 0:01:54]}  Qc7 {[%clk 0:01:06]} 16. Rhd1 {[%clk 0:01:50]}  O-O {[%clk 0:00:47]} 17. h4 {[%clk 0:01:48]}  b5 {[%clk 0:00:38]} 18. h5 {[%clk 0:01:47]}  Ne7 {[%clk 0:00:37]} 19. Bc5 {[%clk 0:01:41]}  Re8 {[%clk 0:00:35]} 20. h6 {[%clk 0:01:38]}  Bb7 {[%clk 0:00:29]} 21. Bd6 {[%clk 0:01:30]}  Qc4 {[%clk 0:00:25]} 22. Rd4 {[%clk 0:01:09]}  Qc6 {[%clk 0:00:24]} 23. hxg7 {[%clk 0:01:01]}  Rac8 {[%clk 0:00:23]} 24. Nc5 {[%clk 0:01:00]}  b4 {[%clk 0:00:09]} 25. Rh1 {[%clk 0:00:57]}  Ng6 {[%clk 0:00:08]} 26. Qh2 {[%clk 0:00:52]}  f6 {[%clk 0:00:00]} 27. Qxh7+ {[%clk 0:00:50]} 1-0


[Site "https://www.chess.com"]